[Event "December 12 Early 2023"]
[Site "https://www.chess.com"]
[Date "2023.12.12"]
[Round "2"]
[White "Semenenko, Dmytry"]
[Black "Kim, Sergey"]
[Result "0-1"]
[Board "141"]
[TimeControl "180+1"]
[WhiteFideId "14118645"]
[BlackFideId "13700570"]
[WhiteElo "2386"]
[BlackElo "2606"]
[WhiteTeam "UKR"]
[BlackTeam "KAZ"]
[WhiteClock "0:00:05"]
[BlackClock "0:00:10"]

1. Nf3 {[%clk 0:02:59]}  Nf6 {[%clk 0:02:59]} 2. c4 {[%clk 0:03:00]}  g6 {[%clk 0:02:59]} 3. d4 {[%clk 0:03:00]}  Bg7 {[%clk 0:03:00]} 4. Nc3 {[%clk 0:03:01]}  d6 {[%clk 0:03:00]} 5. e4 {[%clk 0:03:01]}  O-O {[%clk 0:03:00]} 6. Be2 {[%clk 0:03:02]}  e5 {[%clk 0:03:00]} 7. dxe5 {[%clk 0:03:02]}  dxe5 {[%clk 0:03:00]} 8. Bg5 {[%clk 0:03:03]}  c6 {[%clk 0:02:59]} 9. O-O {[%clk 0:03:02]}  Na6 {[%clk 0:02:57]} 10. Qc2 {[%clk 0:03:00]}  Qc7 {[%clk 0:02:55]} 11. a3 {[%clk 0:02:59]}  Nc5 {[%clk 0:02:53]} 12. b4 {[%clk 0:02:59]}  Ne6 {[%clk 0:02:52]} 13. Rad1 {[%clk 0:02:56]}  Nxg5 {[%clk 0:02:48]} 14. Nxg5 {[%clk 0:02:57]}  a5 {[%clk 0:02:37]} 15. c5 {[%clk 0:02:56]}  axb4 {[%clk 0:02:36]} 16. axb4 {[%clk 0:02:56]}  h6 {[%clk 0:02:35]} 17. Nf3 {[%clk 0:02:56]}  Be6 {[%clk 0:02:34]} 18. Rd6 {[%clk 0:02:54]}  Nh5 {[%clk 0:02:33]} 19. g3 {[%clk 0:02:48]}  Rfd8 {[%clk 0:02:26]} 20. Rfd1 {[%clk 0:02:48]}  Bf8 {[%clk 0:02:14]} 21. Rxd8 {[%clk 0:02:42]}  Rxd8 {[%clk 0:02:14]} 22. Rxd8 {[%clk 0:02:43]}  Qxd8 {[%clk 0:02:13]} 23. Nxe5 {[%clk 0:02:43]}  Bg7 {[%clk 0:02:09]} 24. Nf3 {[%clk 0:02:31]}  Qf6 {[%clk 0:01:55]} 25. e5 {[%clk 0:02:26]}  Qd8 {[%clk 0:01:49]} 26. Ne4 {[%clk 0:02:02]}  Qd5 {[%clk 0:01:33]} 27. Nd6 {[%clk 0:01:53]}  Bxe5 {[%clk 0:01:28]} 28. Nxe5 {[%clk 0:01:50]}  Qxe5 {[%clk 0:01:29]} 29. Nxb7 {[%clk 0:01:45]}  Bd5 {[%clk 0:01:27]} 30. Nd6 {[%clk 0:01:35]}  Nf6 {[%clk 0:01:19]} 31. Nc4 {[%clk 0:01:07]}  Qa1+ {[%clk 0:01:16]} 32. Bf1 {[%clk 0:01:05]}  Ne4 {[%clk 0:01:11]} 33. Ne3 {[%clk 0:01:01]}  Ng5 {[%clk 0:00:52]} 34. Qd1 {[%clk 0:00:31]}  Nf3+ {[%clk 0:00:24]} 35. Kg2 {[%clk 0:00:28]}  Ne1+ {[%clk 0:00:20]} 36. Kh3 {[%clk 0:00:21]}  Be6+ {[%clk 0:00:18]} 37. g4 {[%clk 0:00:22]}  Qc3 {[%clk 0:00:15]} 38. Qe2 {[%clk 0:00:15]}  h5 {[%clk 0:00:13]} 39. f3 {[%clk 0:00:12]}  hxg4+ {[%clk 0:00:12]} 40. fxg4 {[%clk 0:00:13]}  Nc2 {[%clk 0:00:11]} 41. Qxc2 {[%clk 0:00:10]}  Qxe3+ {[%clk 0:00:10]} 42. Kg2 {[%clk 0:00:10]}  Bd5+ {[%clk 0:00:10]} 43. Qe4 {[%clk 0:00:05]}  Bxe4# {[%clk 0:00:10]} 0-1

[Event "December 12 Early 2023"]
[Site "https://www.chess.com"]
[Date "2023.12.12"]
[Round "2"]
[White "Sahib Singh"]
[Black "Donchenko, Anatoly"]
[Result "1-0"]
[Board "142"]
[TimeControl "180+1"]
[WhiteFideId "25618342"]
[BlackFideId "4106091"]
[WhiteElo "2602"]
[BlackElo "2382"]
[WhiteTeam "IND"]
[BlackTeam "GER"]
[WhiteClock "0:01:23"]
[BlackClock "0:01:23"]

1. e4 {[%clk 0:03:00]}  Nf6 {[%clk 0:02:56]} 2. e5 {[%clk 0:03:01]}  Nd5 {[%clk 0:02:56]} 3. c4 {[%clk 0:03:01]}  Nb6 {[%clk 0:02:55]} 4. d4 {[%clk 0:03:02]}  d6 {[%clk 0:02:55]} 5. exd6 {[%clk 0:03:03]}  exd6 {[%clk 0:02:54]} 6. Nc3 {[%clk 0:03:02]}  Nc6 {[%clk 0:02:54]} 7. h3 {[%clk 0:02:58]}  Be7 {[%clk 0:02:54]} 8. Nf3 {[%clk 0:02:58]}  O-O {[%clk 0:02:53]} 9. Be3 {[%clk 0:02:57]}  Bf5 {[%clk 0:02:52]} 10. d5 {[%clk 0:02:55]}  Nb8 {[%clk 0:02:48]} 11. g4 {[%clk 0:02:52]}  Bg6 {[%clk 0:02:45]} 12. h4 {[%clk 0:02:52]}  h6 {[%clk 0:02:44]} 13. h5 {[%clk 0:02:47]}  Bh7 {[%clk 0:02:43]} 14. Qd2 {[%clk 0:02:42]}  Re8 {[%clk 0:02:34]} 15. O-O-O {[%clk 0:02:41]}  f6 {[%clk 0:02:30]} 16. Nd4 {[%clk 0:02:37]}  N8d7 {[%clk 0:02:25]} 17. Ne6 {[%clk 0:02:30]}  Qc8 {[%clk 0:02:25]} 18. f4 {[%clk 0:02:09]}  Nf8 {[%clk 0:02:24]} 19. f5 {[%clk 0:02:08]}  Nfd7 {[%clk 0:02:24]} 20. Ne4 {[%clk 0:01:58]}  Ne5 {[%clk 0:02:23]} 21. Bxh6 {[%clk 0:01:50]}  Nbxc4 {[%clk 0:02:15]} 22. Bxc4 {[%clk 0:01:46]}  Nxc4 {[%clk 0:02:15]} 23. Qf4 {[%clk 0:01:47]}  Bf8 {[%clk 0:02:14]} 24. Nxf6+ {[%clk 0:01:42]}  gxf6 {[%clk 0:02:08]} 25. Bxf8 {[%clk 0:01:42]}  Rxf8 {[%clk 0:02:08]} 26. Nxf8 {[%clk 0:01:35]}  Qxf8 {[%clk 0:02:05]} 27. Qxc4 {[%clk 0:01:34]}  c6 {[%clk 0:02:04]} 28. dxc6+ {[%clk 0:01:34]}  Kh8 {[%clk 0:02:03]} 29. cxb7 {[%clk 0:01:33]}  Rb8 {[%clk 0:02:02]} 30. Qc7 {[%clk 0:01:31]}  Bg8 {[%clk 0:01:23]} 31. Kb1 {[%clk 0:01:23]} 1-0

[Event "December 12 Early 2023"]
[Site "https://www.chess.com"]
[Date "2023.12.12"]
[Round "2"]
[White "Manukian, Artak"]
[Black "La Villa Rivas, Marlon Javier"]
[Result "1-0"]
[Board "144"]
[TimeControl "180+1"]
[WhiteFideId "13301373"]
[BlackFideId "3519546"]
[WhiteElo "2587"]
[BlackElo "2373"]
[WhiteTeam "ARM"]
[BlackTeam "CUB"]
[WhiteClock "0:00:13"]
[BlackClock "0:00:06"]

1. e4 {[%clk 0:03:00]}  e6 {[%clk 0:02:51]} 2. d4 {[%clk 0:02:58]}  d5 {[%clk 0:02:52]} 3. e5 {[%clk 0:02:57]}  c5 {[%clk 0:02:51]} 4. c3 {[%clk 0:02:56]}  Bd7 {[%clk 0:02:51]} 5. Nf3 {[%clk 0:02:50]}  Qb6 {[%clk 0:02:51]} 6. a3 {[%clk 0:02:41]}  cxd4 {[%clk 0:02:39]} 7. cxd4 {[%clk 0:02:34]}  Bb5 {[%clk 0:02:39]} 8. Bxb5+ {[%clk 0:02:31]}  Qxb5 {[%clk 0:02:40]} 9. Nc3 {[%clk 0:02:32]}  Qa6 {[%clk 0:02:40]} 10. b4 {[%clk 0:02:32]}  Bxb4 {[%clk 0:02:34]} 11. axb4 {[%clk 0:02:30]}  Qxa1 {[%clk 0:02:33]} 12. Nb5 {[%clk 0:02:31]}  Na6 {[%clk 0:02:29]} 13. Nd6+ {[%clk 0:02:20]}  Kf8 {[%clk 0:02:26]} 14. O-O {[%clk 0:02:16]}  Nh6 {[%clk 0:02:15]} 15. Ng5 {[%clk 0:02:05]}  Nxb4 {[%clk 0:02:07]} 16. Ngxf7 {[%clk 0:01:32]}  Qc3 {[%clk 0:01:38]} 17. Nxh6 {[%clk 0:01:29]}  gxh6 {[%clk 0:01:37]} 18. Bxh6+ {[%clk 0:01:29]}  Ke7 {[%clk 0:01:36]} 19. Qh5 {[%clk 0:01:24]}  Rag8 {[%clk 0:01:00]} 20. Qf7+ {[%clk 0:01:22]}  Kd8 {[%clk 0:01:01]} 21. Nxb7+ {[%clk 0:01:16]}  Kc8 {[%clk 0:01:01]} 22. Nd6+ {[%clk 0:01:16]}  Kd8 {[%clk 0:00:59]} 23. Bg5+ {[%clk 0:01:02]}  Rxg5 {[%clk 0:00:59]} 24. Qf6+ {[%clk 0:01:01]}  Kc7 {[%clk 0:00:59]} 25. Qxg5 {[%clk 0:01:01]}  Kb6 {[%clk 0:00:53]} 26. Qe7 {[%clk 0:00:54]}  Qc7 {[%clk 0:00:43]} 27. Qxe6 {[%clk 0:00:54]}  Qc6 {[%clk 0:00:35]} 28. Rb1 {[%clk 0:00:48]}  a5 {[%clk 0:00:34]} 29. Qh3 {[%clk 0:00:38]}  Rf8 {[%clk 0:00:33]} 30. Qe3 {[%clk 0:00:28]}  Qc2 {[%clk 0:00:26]} 31. Rf1 {[%clk 0:00:26]}  Rg8 {[%clk 0:00:26]} 32. e6 {[%clk 0:00:20]}  Qg6 {[%clk 0:00:25]} 33. g3 {[%clk 0:00:19]}  Nc6 {[%clk 0:00:23]} 34. Nf7 {[%clk 0:00:16]}  Ne7 {[%clk 0:00:23]} 35. Qb3+ {[%clk 0:00:14]}  Ka6 {[%clk 0:00:20]} 36. Ne5 {[%clk 0:00:13]}  Qxe6 {[%clk 0:00:19]} 37. Rb1 {[%clk 0:00:13]}  a4 {[%clk 0:00:06]} 38. Qb7+ {[%clk 0:00:13]}  Ka5 {[%clk 0:00:06]} 39. Rb5# {[%clk 0:00:13]} 1-0

[Event "December 12 Early 2023"]
[Site "https://www.chess.com"]
[Date "2023.12.12"]
[Round "2"]
[White "Attacker_2006"]
[Black "Ozcan, Kaan"]
[Result "0-1"]
[Board "145"]
[TimeControl "180+1"]
[BlackFideId "34566422"]
[WhiteElo "2586"]
[BlackElo "2372"]
[BlackTeam "TUR"]
[WhiteClock "0:00:00"]
[BlackClock "0:00:17"]

1. c4 {[%clk 0:03:00]}  Nf6 {[%clk 0:02:59]} 2. Nf3 {[%clk 0:02:59]}  e6 {[%clk 0:02:58]} 3. g3 {[%clk 0:02:56]}  d5 {[%clk 0:02:58]} 4. Bg2 {[%clk 0:02:56]}  Nbd7 {[%clk 0:02:57]} 5. O-O {[%clk 0:02:56]}  dxc4 {[%clk 0:02:58]} 6. Qa4 {[%clk 0:02:56]}  Be7 {[%clk 0:02:56]} 7. Qxc4 {[%clk 0:02:54]}  O-O {[%clk 0:02:56]} 8. d4 {[%clk 0:02:53]}  Rb8 {[%clk 0:02:53]} 9. Nc3 {[%clk 0:02:52]}  a6 {[%clk 0:02:50]} 10. Bf4 {[%clk 0:02:51]}  Bd6 {[%clk 0:02:49]} 11. Ne5 {[%clk 0:02:51]}  Nh5 {[%clk 0:02:42]} 12. Ne4 {[%clk 0:02:47]}  Nxf4 {[%clk 0:02:40]} 13. gxf4 {[%clk 0:02:48]}  Bxe5 {[%clk 0:02:38]} 14. fxe5 {[%clk 0:02:47]}  b5 {[%clk 0:02:37]} 15. Qc2 {[%clk 0:02:45]}  Bb7 {[%clk 0:02:37]} 16. f4 {[%clk 0:02:45]}  Nb6 {[%clk 0:02:33]} 17. e3 {[%clk 0:02:40]}  Nd5 {[%clk 0:02:32]} 18. Rae1 {[%clk 0:02:38]}  h6 {[%clk 0:02:31]} 19. f5 {[%clk 0:02:37]}  Qh4 {[%clk 0:02:14]} 20. Ng3 {[%clk 0:02:23]}  Qg5 {[%clk 0:01:57]} 21. f6 {[%clk 0:02:04]}  Nxe3 {[%clk 0:01:49]} 22. Rxe3 {[%clk 0:01:54]}  Qxe3+ {[%clk 0:01:49]} 23. Kh1 {[%clk 0:01:47]}  Bxg2+ {[%clk 0:01:48]} 24. Qxg2 {[%clk 0:01:46]}  g6 {[%clk 0:01:46]} 25. Ne2 {[%clk 0:00:49]}  Rfd8 {[%clk 0:01:09]} 26. Rf3 {[%clk 0:00:47]}  Qe4 {[%clk 0:01:04]} 27. Rc3 {[%clk 0:00:27]}  Qxg2+ {[%clk 0:01:01]} 28. Kxg2 {[%clk 0:00:27]}  Rd7 {[%clk 0:01:02]} 29. Kf3 {[%clk 0:00:27]}  Kf8 {[%clk 0:00:56]} 30. Ke4 {[%clk 0:00:27]}  Rb6 {[%clk 0:00:47]} 31. Nf4 {[%clk 0:00:25]}  Ke8 {[%clk 0:00:44]} 32. Rh3 {[%clk 0:00:24]}  h5 {[%clk 0:00:44]} 33. Rg3 {[%clk 0:00:21]}  Rc6 {[%clk 0:00:42]} 34. Nxh5 {[%clk 0:00:21]}  Rc4 {[%clk 0:00:39]} 35. Ng7+ {[%clk 0:00:12]}  Kf8 {[%clk 0:00:39]} 36. Rd3 {[%clk 0:00:10]}  c5 {[%clk 0:00:38]} 37. Ra3 {[%clk 0:00:07]}  Rcxd4+ {[%clk 0:00:32]} 38. Ke3 {[%clk 0:00:07]}  Ra4 {[%clk 0:00:27]} 39. Rc3 {[%clk 0:00:07]}  c4 {[%clk 0:00:23]} 40. Ke2 {[%clk 0:00:06]}  Rxa2 {[%clk 0:00:23]} 41. Rh3 {[%clk 0:00:07]}  Rxb2+ {[%clk 0:00:21]} 42. Ke1 {[%clk 0:00:06]}  Kg8 {[%clk 0:00:20]} 43. Ra3 {[%clk 0:00:05]}  Ra7 {[%clk 0:00:16]} 44. Kd1 {[%clk 0:00:04]}  Rb3 {[%clk 0:00:16]} 45. Ra2 {[%clk 0:00:04]}  Rd7+ {[%clk 0:00:16]} 46. Kc1 {[%clk 0:00:04]}  Ra7 {[%clk 0:00:16]} 47. Rd2 {[%clk 0:00:04]}  Rd3 {[%clk 0:00:16]} 48. Rg2 {[%clk 0:00:04]}  Rad7 {[%clk 0:00:16]} 49. h4 {[%clk 0:00:04]}  a5 {[%clk 0:00:15]} 50. h5 {[%clk 0:00:04]}  c3 {[%clk 0:00:15]} 51. hxg6 {[%clk 0:00:03]}  Rd1+ {[%clk 0:00:15]} 52. Kc2 {[%clk 0:00:02]}  R1d2+ {[%clk 0:00:16]} 53. Rxd2 {[%clk 0:00:02]}  cxd2 {[%clk 0:00:17]} 54. gxf7+ {[%clk 0:00:02]}  Kxf7 {[%clk 0:00:17]} 55. Kd1 {[%clk 0:00:00]}  a4 {[%clk 0:00:17]} 0-1

[Event "December 12 Early 2023"]
[Site "https://www.chess.com"]
[Date "2023.12.12"]
[Round "2"]
[White "Gutkin, Ilya"]
[Black "Sharapov, Evgeny"]
[Result "0-1"]
[Board "149"]
[TimeControl "180+1"]
[WhiteFideId "16203470"]
[BlackFideId "14103133"]
[WhiteElo "2363"]
[BlackElo "2537"]
[WhiteTeam "GER"]
[BlackTeam "UKR"]
[WhiteClock "0:00:00"]
[BlackClock "0:01:44"]

1. e4 {[%clk 0:03:00]}  c5 {[%clk 0:03:00]} 2. Nf3 {[%clk 0:02:59]}  d6 {[%clk 0:03:00]} 3. Bb5+ {[%clk 0:02:58]}  Nd7 {[%clk 0:03:00]} 4. O-O {[%clk 0:02:58]}  Nf6 {[%clk 0:03:00]} 5. Re1 {[%clk 0:02:57]}  a6 {[%clk 0:03:00]} 6. Bf1 {[%clk 0:02:52]}  e5 {[%clk 0:03:00]} 7. c3 {[%clk 0:02:51]}  Be7 {[%clk 0:03:00]} 8. d4 {[%clk 0:02:50]}  O-O {[%clk 0:03:01]} 9. Bg5 {[%clk 0:02:42]}  h6 {[%clk 0:03:01]} 10. Bxf6 {[%clk 0:02:41]}  Bxf6 {[%clk 0:03:00]} 11. dxe5 {[%clk 0:02:39]}  Nxe5 {[%clk 0:03:00]} 12. Nbd2 {[%clk 0:02:35]}  Qc7 {[%clk 0:02:59]} 13. Nxe5 {[%clk 0:02:32]}  Bxe5 {[%clk 0:02:59]} 14. Nc4 {[%clk 0:02:32]}  b5 {[%clk 0:02:58]} 15. Ne3 {[%clk 0:02:26]}  Bb7 {[%clk 0:02:58]} 16. Nd5 {[%clk 0:02:26]}  Bxd5 {[%clk 0:02:58]} 17. Qxd5 {[%clk 0:02:21]}  Qb6 {[%clk 0:02:58]} 18. g3 {[%clk 0:02:20]}  b4 {[%clk 0:02:58]} 19. cxb4 {[%clk 0:02:11]}  Qxb4 {[%clk 0:02:58]} 20. Rab1 {[%clk 0:02:01]}  Qd4 {[%clk 0:02:58]} 21. Red1 {[%clk 0:01:57]}  Qxd5 {[%clk 0:02:58]} 22. Rxd5 {[%clk 0:01:57]}  Rfd8 {[%clk 0:02:57]} 23. b3 {[%clk 0:01:54]}  a5 {[%clk 0:02:57]} 24. Bb5 {[%clk 0:01:41]}  Kf8 {[%clk 0:02:56]} 25. Rbd1 {[%clk 0:01:32]}  Ke7 {[%clk 0:02:56]} 26. f4 {[%clk 0:01:22]}  Bd4+ {[%clk 0:02:56]} 27. Kg2 {[%clk 0:01:22]}  Rab8 {[%clk 0:02:55]} 28. a4 {[%clk 0:01:20]}  f6 {[%clk 0:02:54]} 29. Kf3 {[%clk 0:01:19]}  Rf8 {[%clk 0:02:49]} 30. Rc1 {[%clk 0:01:16]}  Rg8 {[%clk 0:02:49]} 31. Rxd4 {[%clk 0:00:54]}  cxd4 {[%clk 0:02:48]} 32. Rc7+ {[%clk 0:00:54]}  Kd8 {[%clk 0:02:48]} 33. Rd7+ {[%clk 0:00:46]}  Kc8 {[%clk 0:02:48]} 34. Rxd6 {[%clk 0:00:42]}  Rd8 {[%clk 0:02:48]} 35. Rxd8+ {[%clk 0:00:29]}  Kxd8 {[%clk 0:02:47]} 36. Ke2 {[%clk 0:00:30]}  Kc7 {[%clk 0:02:42]} 37. Kd3 {[%clk 0:00:29]}  Rd8 {[%clk 0:02:42]} 38. e5 {[%clk 0:00:23]}  fxe5 {[%clk 0:02:41]} 39. fxe5 {[%clk 0:00:24]}  Rd5 {[%clk 0:02:38]} 40. Ke4 {[%clk 0:00:18]}  Rd8 {[%clk 0:02:32]} 41. g4 {[%clk 0:00:13]}  g5 {[%clk 0:02:28]} 42. h3 {[%clk 0:00:12]}  Rf8 {[%clk 0:02:24]} 43. Kxd4 {[%clk 0:00:11]}  Rf3 {[%clk 0:02:24]} 44. Kd5 {[%clk 0:00:05]}  Kd8 {[%clk 0:02:05]} 45. Kc5 {[%clk 0:00:01]}  Rxh3 {[%clk 0:02:01]} 46. Kb6 {[%clk 0:00:01]}  h5 {[%clk 0:02:00]} 47. gxh5 {[%clk 0:00:01]}  g4 {[%clk 0:02:00]} 48. Kxa5 {[%clk 0:00:01]}  g3 {[%clk 0:02:00]} 49. Bc6 {[%clk 0:00:02]}  Rxh5 {[%clk 0:01:59]} 50. b4 {[%clk 0:00:02]}  Rxe5+ {[%clk 0:01:56]} 51. b5 {[%clk 0:00:02]}  Kc7 {[%clk 0:01:51]} 52. Ba8 {[%clk 0:00:02]}  Kb8 {[%clk 0:01:46]} 53. Bg2 {[%clk 0:00:01]}  Re2 {[%clk 0:01:46]} 54. Bf3 {[%clk 0:00:01]}  Rf2 {[%clk 0:01:46]} 55. Bd5 {[%clk 0:00:01]}  g2 {[%clk 0:01:46]} 56. Bxg2 {[%clk 0:00:02]}  Rxg2 {[%clk 0:01:47]} 57. Ka6 {[%clk 0:00:02]}  Rg6+ {[%clk 0:01:44]} 58. b6 {[%clk 0:00:02]}  Rg5 {[%clk 0:01:43]} 59. a5 {[%clk 0:00:03]}  Rh5 {[%clk 0:01:43]} 60. b7 {[%clk 0:00:00]}  Rh6+ {[%clk 0:01:44]} 0-1

[Event "December 12 Early 2023"]
[Site "https://www.chess.com"]
[Date "2023.12.12"]
[Round "2"]
[White "Zaksaite, Salomeja"]
[Black "Khamdamova, Afruza"]
[Result "1-0"]
[Board "150"]
[TimeControl "180+1"]
[WhiteFideId "12801496"]
[BlackFideId "14210444"]
[WhiteElo "2359"]
[BlackElo "2532"]
[WhiteTeam "LTU"]
[BlackTeam "UZB"]
[WhiteClock "0:00:02"]
[BlackClock "0:00:02"]

1. e3 {[%clk 0:03:00]}  e5 {[%clk 0:02:59]} 2. d4 {[%clk 0:03:00]}  exd4 {[%clk 0:02:58]} 3. exd4 {[%clk 0:03:01]}  Nf6 {[%clk 0:02:59]} 4. Bd3 {[%clk 0:02:54]}  d5 {[%clk 0:02:59]} 5. Nc3 {[%clk 0:02:52]}  Be7 {[%clk 0:02:58]} 6. Bg5 {[%clk 0:02:52]}  O-O {[%clk 0:02:59]} 7. Qd2 {[%clk 0:02:50]}  c5 {[%clk 0:02:54]} 8. dxc5 {[%clk 0:02:49]}  Bxc5 {[%clk 0:02:49]} 9. O-O-O {[%clk 0:02:47]}  Be6 {[%clk 0:02:47]} 10. Nge2 {[%clk 0:02:43]}  Nc6 {[%clk 0:02:34]} 11. Nf4 {[%clk 0:02:42]}  h6 {[%clk 0:02:25]} 12. Bh4 {[%clk 0:02:25]}  Rc8 {[%clk 0:02:06]} 13. Rhe1 {[%clk 0:02:00]}  Bb4 {[%clk 0:01:29]} 14. a3 {[%clk 0:01:54]}  Ba5 {[%clk 0:01:28]} 15. Nh5 {[%clk 0:01:35]}  Ne4 {[%clk 0:01:02]} 16. Rxe4 {[%clk 0:01:31]}  g5 {[%clk 0:00:51]} 17. Ra4 {[%clk 0:00:32]}  d4 {[%clk 0:00:47]} 18. Qe2 {[%clk 0:00:17]}  gxh4 {[%clk 0:00:29]} 19. Qe4 {[%clk 0:00:16]}  Qg5+ {[%clk 0:00:29]} 20. f4 {[%clk 0:00:07]}  Qg6 {[%clk 0:00:25]} 21. f5 {[%clk 0:00:05]}  Qg5+ {[%clk 0:00:22]} 22. Nf4 {[%clk 0:00:05]}  dxc3 {[%clk 0:00:16]} 23. fxe6 {[%clk 0:00:05]}  cxb2+ {[%clk 0:00:17]} 24. Kb1 {[%clk 0:00:05]}  Qg7 {[%clk 0:00:17]} 25. Nh5 {[%clk 0:00:04]}  Qg6 {[%clk 0:00:15]} 26. exf7+ {[%clk 0:00:04]}  Qxf7 {[%clk 0:00:15]} 27. Nf6+ {[%clk 0:00:03]}  Kg7 {[%clk 0:00:12]} 28. Nh5+ {[%clk 0:00:01]}  Kg8 {[%clk 0:00:10]} 29. Qg4+ {[%clk 0:00:01]}  Kh8 {[%clk 0:00:09]} 30. Rf4 {[%clk 0:00:02]}  Qg8 {[%clk 0:00:06]} 31. Rxf8 {[%clk 0:00:02]}  Qxf8 {[%clk 0:00:03]} 32. Qg6 {[%clk 0:00:02]}  Ne5 {[%clk 0:00:02]} 33. Qh7# {[%clk 0:00:02]} 1-0

[Event "December 12 Early 2023"]
[Site "https://www.chess.com"]
[Date "2023.12.12"]
[Round "2"]
[White "Estrada Nieto, Julian"]
[Black "Vigoa Apecheche, Yanira"]
[Result "1-0"]
[Board "153"]
[TimeControl "180+1"]
[WhiteFideId "5101018"]
[BlackFideId "3507041"]
[WhiteElo "2528"]
[BlackElo "2353"]
[WhiteTeam "ESP"]
[BlackTeam "USA"]
[WhiteClock "0:00:26"]
[BlackClock "0:00:14"]

1. e4 {[%clk 0:03:00]}  c5 {[%clk 0:02:58]} 2. Nf3 {[%clk 0:03:00]}  Nc6 {[%clk 0:02:57]} 3. Bb5 {[%clk 0:03:00]}  g6 {[%clk 0:02:57]} 4. Bxc6 {[%clk 0:03:00]}  dxc6 {[%clk 0:02:58]} 5. d3 {[%clk 0:03:00]}  Bg7 {[%clk 0:02:58]} 6. h3 {[%clk 0:03:01]}  Nf6 {[%clk 0:02:58]} 7. Nc3 {[%clk 0:03:01]}  Nd7 {[%clk 0:02:57]} 8. Be3 {[%clk 0:03:02]}  e5 {[%clk 0:02:58]} 9. Qd2 {[%clk 0:03:03]}  Qe7 {[%clk 0:02:58]} 10. Bh6 {[%clk 0:03:00]}  f6 {[%clk 0:02:58]} 11. Bxg7 {[%clk 0:03:00]}  Qxg7 {[%clk 0:02:58]} 12. O-O-O {[%clk 0:02:57]}  h5 {[%clk 0:02:54]} 13. Nh2 {[%clk 0:02:54]}  Nf8 {[%clk 0:02:52]} 14. f4 {[%clk 0:02:54]}  Ne6 {[%clk 0:02:47]} 15. fxe5 {[%clk 0:02:51]}  fxe5 {[%clk 0:02:47]} 16. Nf3 {[%clk 0:02:52]}  Bd7 {[%clk 0:02:39]} 17. Ng5 {[%clk 0:02:41]}  Nd4 {[%clk 0:02:20]} 18. Rhf1 {[%clk 0:02:40]}  Be6 {[%clk 0:02:17]} 19. Ne2 {[%clk 0:02:28]}  Bg8 {[%clk 0:01:36]} 20. Nxd4 {[%clk 0:02:25]}  cxd4 {[%clk 0:01:34]} 21. Qa5 {[%clk 0:02:15]}  h4 {[%clk 0:01:22]} 22. Rf2 {[%clk 0:01:48]}  Rh5 {[%clk 0:01:15]} 23. Nf3 {[%clk 0:01:45]}  Qe7 {[%clk 0:01:05]} 24. Rdf1 {[%clk 0:01:39]}  b6 {[%clk 0:01:04]} 25. Qa4 {[%clk 0:01:32]}  Kd7 {[%clk 0:00:44]} 26. Nh2 {[%clk 0:01:28]}  a5 {[%clk 0:00:38]} 27. c3 {[%clk 0:01:14]}  b5 {[%clk 0:00:37]} 28. Qd1 {[%clk 0:01:12]}  dxc3 {[%clk 0:00:32]} 29. Ng4 {[%clk 0:01:02]}  Bxa2 {[%clk 0:00:27]} 30. Nf6+ {[%clk 0:01:00]}  Kc7 {[%clk 0:00:24]} 31. Nxh5 {[%clk 0:00:59]}  gxh5 {[%clk 0:00:21]} 32. Qxh5 {[%clk 0:00:58]}  Qb4 {[%clk 0:00:18]} 33. Qxe5+ {[%clk 0:00:54]}  Kb6 {[%clk 0:00:19]} 34. Qxc3 {[%clk 0:00:53]}  Qd6 {[%clk 0:00:18]} 35. Rf6 {[%clk 0:00:50]}  Qc7 {[%clk 0:00:17]} 36. Qd4+ {[%clk 0:00:44]}  Ka6 {[%clk 0:00:17]} 37. Qc5 {[%clk 0:00:43]}  Rc8 {[%clk 0:00:16]} 38. d4 {[%clk 0:00:34]}  Bc4 {[%clk 0:00:16]} 39. R1f2 {[%clk 0:00:30]}  Qd7 {[%clk 0:00:15]} 40. d5 {[%clk 0:00:28]}  Kb7 {[%clk 0:00:15]} 41. Rf7 {[%clk 0:00:28]}  cxd5 {[%clk 0:00:14]} 42. Rxd7+ {[%clk 0:00:27]}  Kb8 {[%clk 0:00:14]} 43. Qb6+ {[%clk 0:00:26]} 1-0

[Event "December 12 Early 2023"]
[Site "https://www.chess.com"]
[Date "2023.12.12"]
[Round "2"]
[White "Diaz, Fernando"]
[Black "Rogov, Matfey"]
[Result "1-0"]
[Board "156"]
[TimeControl "180+1"]
[WhiteFideId "3701255"]
[BlackFideId "44191308"]
[WhiteElo "2350"]
[BlackElo "2525"]
[WhiteTeam "PAR"]
[BlackTeam "RUS"]
[WhiteClock "0:01:34"]
[BlackClock "0:00:18"]

1. e4 {[%clk 0:03:00]}  e6 {[%clk 0:02:59]} 2. d4 {[%clk 0:02:53]}  d5 {[%clk 0:02:59]} 3. e5 {[%clk 0:02:52]}  Bd7 {[%clk 0:02:58]} 4. c3 {[%clk 0:02:52]}  a6 {[%clk 0:02:58]} 5. Nf3 {[%clk 0:02:51]}  Bb5 {[%clk 0:02:58]} 6. Bxb5+ {[%clk 0:02:51]}  axb5 {[%clk 0:02:59]} 7. O-O {[%clk 0:02:51]}  Nd7 {[%clk 0:02:59]} 8. Na3 {[%clk 0:02:51]}  c6 {[%clk 0:02:59]} 9. Nc2 {[%clk 0:02:51]}  Nb6 {[%clk 0:02:58]} 10. b3 {[%clk 0:02:49]}  Ne7 {[%clk 0:02:53]} 11. Bb2 {[%clk 0:02:50]}  Nf5 {[%clk 0:02:52]} 12. g4 {[%clk 0:02:49]}  Ne7 {[%clk 0:02:46]} 13. Nb4 {[%clk 0:02:45]}  h5 {[%clk 0:02:44]} 14. h3 {[%clk 0:02:44]}  hxg4 {[%clk 0:02:37]} 15. hxg4 {[%clk 0:02:45]}  Ng6 {[%clk 0:02:38]} 16. Nd3 {[%clk 0:02:45]}  Kd7 {[%clk 0:02:26]} 17. Qe2 {[%clk 0:02:39]}  Be7 {[%clk 0:02:20]} 18. Kg2 {[%clk 0:02:23]}  Rh6 {[%clk 0:01:56]} 19. Bc1 {[%clk 0:02:19]}  Rh7 {[%clk 0:01:46]} 20. Be3 {[%clk 0:02:20]}  Qh8 {[%clk 0:01:45]} 21. Nc5+ {[%clk 0:02:13]}  Bxc5 {[%clk 0:01:43]} 22. dxc5 {[%clk 0:02:12]}  Nc8 {[%clk 0:00:56]} 23. c4 {[%clk 0:02:11]}  Nxe5 {[%clk 0:00:48]} 24. Nxe5+ {[%clk 0:01:44]}  Ke8 {[%clk 0:00:48]} 25. Nf3 {[%clk 0:01:41]}  Ne7 {[%clk 0:00:44]} 26. Bf4 {[%clk 0:01:38]}  Ng6 {[%clk 0:00:35]} 27. Bg3 {[%clk 0:01:38]}  Ke7 {[%clk 0:00:29]} 28. cxd5 {[%clk 0:01:38]}  cxd5 {[%clk 0:00:28]} 29. Bd6+ {[%clk 0:01:35]}  Kd7 {[%clk 0:00:29]} 30. Qxb5+ {[%clk 0:01:34]}  Kc8 {[%clk 0:00:18]} 31. c6 {[%clk 0:01:34]} 1-0